Cogmind - Beta 10.2 @@@ ROGUE MODE // 2022.02.28 @ 04:37:19 Player: W_W Result: Core destroyed Performance ------------- Evolutions (7) 3500 Regions Visited (16) 3200 Robots Destroyed (304) 1520 Value Destroyed (11185) 11185 Prototype IDs (52) 1040 Alien Tech Used (1) 200 Bonus (1062) 1062 TOTAL SCORE: 21707 Bonus ------- High Alert Combat Kills 631 Follower Combat Kills 805 Aligned with FarCom 300 Met Data Miner 300 Friendly Fire -974 Cogmind --------- Core Integrity 0/1300 Matter 144/300 Energy 65/250 System Corruption 31% Temperature Cool (541) Movement Immobile (Siege) Location -3/Research Parts ------- > --- POWER (2) -------- Micro Fission Core Light Particle Reactor > --- PROPULSION (4) --- Medium Treads Medium Treads Improved Heavy Treads > --- UTILITY (10) ----- Advanced Cooling System Medium Storage Unit Medium Storage Unit High-capacity Storage Unit Improved Light Armor Plating Improved Recalibrator Heart of Steel > --- WEAPON (5) ------- Quantum Rifle Improved KE Penetrator Linear Accelerator > --- INVENTORY (20) --- Micro Fission Core Light Antimatter Reactor Improved Medium Treads Armored Medium Treads Heavy Treads Matter Compressor (250) Improved Weapon Cycler Hardened Heavy Armor Plating Drone Bay (2/2) Drone Bay (2/2) PSU Rigger Improved Arc Projector Wave Gun Long-range Proton Cannon Peak State ------------ > --- POWER ------------ Light Particle Reactor Light Particle Reactor > --- PROPULSION ------- Heavy Treads Advanced Heavy Treads > --- UTILITY ---------- Medium Storage Unit Medium Storage Unit High-capacity Storage Unit High-capacity Storage Unit Improved Recalibrator Drone Bay Heart of Steel PSU Rigger > --- WEAPON ----------- Quantum Rifle Quantum Rifle Railgun Improved KE Penetrator Improved KE Penetrator > --- INVENTORY -------- Improved Ion Engine Neutrino Core Micro Fission Core Micro Fission Core Micro Fission Core Improved Medium Treads Improved Medium Treads Armored Medium Treads Improved Heavy Treads Advanced Cooling System Matter Compressor Improved Weapon Cycler Drone Bay Drone Bay Improved Arc Projector Wave Gun Quantum Rifle Long-range Proton Cannon Heavy Phase Cannon Improved KE Penetrator Linear Accelerator Guided EMP Blaster Advanced Remote Datajack Phasing Sabre [Rating: 145] Favorites ----------- Power Light Angular Momentum Engine Engine Light Angular Momentum Engine Power Core Micro Fission Core Reactor Light Particle Reactor Propulsion Armored Treads Treads Armored Treads Hover Unit Aerolev Unit Utility Humpback Device PSU Rigger Storage Humpback Protection Heavy Armor Plating Weapon Advanced Assault Cannon Energy Gun Quantum Rifle Energy Cannon EM Pulse Cannon Ballistic Gun Autogun Ballistic Cannon Advanced Assault Cannon Launcher Improved Grenade Launcher Special Weapon Advanced Remote Datajack Impact Weapon Heavy Mace Slashing Weapon Phasing Sabre Build | -11 -10 -10 -10 -9 -8 -8 -7 -7 -7 -7 -6 -6 -5 -4 -4 -3 ------- Run | Scr Mat Min Exi Min Mat Sto Fac Low Low Dat Pro Fac Fac Fac Ext Res Slots Evolved 14 | . . . . . 4 . 2 . . . . 2 2 2 . 2 Power 1 | . . . . . . . . . . . . . . 1 . . Propulsion 2 | . . . . . . . . . . . . 1 . 1 . . Utility 8 | . . . . . 2 . 2 . . . . 1 1 . . 2 Weapon 3 | . . . . . 2 . . . . . . . 1 . . . Parts Attached 271 | 7 9 11 1 . 17 24 14 16 1 2 15 7 50 5 16 76 Power 30 | 1 1 . . . 1 4 1 2 . . . . 3 1 3 13 Engine 11 | 1 1 . . . . 4 1 1 . . . . 1 . . 2 Core 15 | . . . . . 1 . . 1 . . . . 2 1 3 7 Reactor 4 | . . . . . . . . . . . . . . . . 4 Propulsion 30 | 2 1 3 . . 4 2 1 . 1 . 2 1 4 1 1 7 Treads 29 | 2 1 3 . . 3 2 1 . 1 . 2 1 4 1 1 7 Leg . | . . . . . . . . . . . . . . . . . Wheel . | . . . . . . . . . . . . . . . . . Hover 1 | . . . . . 1 . . . . . . . . . . . Flight . | . . . . . . . . . . . . . . . . . Utility 96 | 2 3 1 1 . 1 . 4 6 . . 8 6 26 2 3 33 Device 59 | . . . . . . . 2 4 . . 5 3 17 . 1 27 Storage 20 | 2 3 1 1 . 1 . . 1 . . 1 3 2 . . 5 Processor . | . . . . . . . . . . . . . . . . . Hackware . | . . . . . . . . . . . . . . . . . Protection 17 | . . . . . . . 2 1 . . 2 . 7 2 2 1 Artifact . | . . . . . . . . . . . . . . . . . Weapon 115 | 2 4 7 . . 11 18 8 8 . 2 5 . 17 1 9 23 Energy Gun 15 | . . . . . 1 2 . 1 . . . . 3 . 1 7 Energy Cannon 20 | . . . . . 3 3 4 . . . . . 3 1 4 2 Ballistic Gun 31 | 2 4 4 . . 5 4 1 . . . . . 1 . . 10 Ballistic Cannon 22 | . . . . . . 2 2 3 . 1 3 . 7 . 3 1 Launcher 16 | . . 3 . . 1 4 . 2 . . 2 . 3 . . 1 Special Weapon 2 | . . . . . . . . . . . . . . . . 2 Impact Weapon 8 | . . . . . 1 3 1 2 . 1 . . . . . . Slashing Weapon 1 | . . . . . . . . . . . . . . . 1 . Piercing Weapon . | . . . . . . . . . . . . . . . . . Special Melee Weapon . | . . . . . . . . . . . . . . . . . Unidentified Prototypes 16 | . . . . . 4 5 . . . . 1 . 3 . . 3 Parts Lost 56 | . 1 . . . 3 2 1 . . . 2 . 13 . 10 24 Power 5 | . 1 . . . 1 . . . . . . . 1 . . 2 Propulsion 4 | . . . . . . . . . . . . . 1 . 1 2 Utility 22 | . . . . . . . 1 . . . 1 . 7 . 4 9 Weapon 25 | . . . . . 2 2 . . . . 1 . 4 . 5 11 Highest Loss Streak 7 | . 1 . . . 1 1 1 . . . 1 . 3 . 7 7 Average Slot Usage (%) 85 | . 99 100 88 85 80 80 82 83 84 84 84 92 93 87 89 80 Engine 6 | . 13 14 14 14 6 8 7 6 7 7 7 6 2 5 5 1 Core 1 | . . . . . 2 . . . . . . . 2 4 5 3 Treads 16 | . 28 28 28 28 18 18 15 15 15 15 15 19 15 15 14 9 Device 8 | . . . . . . . 9 14 15 15 10 15 14 15 11 13 Storage 14 | . 28 28 16 14 18 18 11 7 7 7 2 12 17 15 15 20 Protection 5 | . . . . . . . 6 7 7 7 16 11 11 9 11 2 Energy Cannon 5 | . . . . . 6 14 7 7 7 7 . . 2 4 12 2 Ballistic Gun 8 | . 28 23 14 14 28 6 3 . . . . . 1 . . 9 Ballistic Cannon 9 | . . . . . . 6 10 15 23 20 22 20 16 10 8 2 Launcher 2 | . . 4 14 14 . 2 2 5 . . 6 6 2 5 1 . Impact Weapon 1 | . . . . . 1 4 4 . . 2 . . . . . . Naked Turns . | . . . . . . . . . . . . . . . . . Heaviest Build 206 | 13 41 41 87 87 180 189 193 137 136 136 141 150 166 167 183 206 Greatest Support 140 | 40 43 43 43 43 43 40 40 40 40 40 40 70 90 127 127 140 Greatest Overweight (x) 4 | 1 1 . 2 2 4 4 4 3 3 3 3 2 3 1 1 2 Average Overweight (x) 2 | . . . 1 2 4 4 3 3 3 3 1 1 1 1 1 1 Largest Inventory Capacity 44 | 8 16 16 24 24 44 44 44 24 24 24 24 28 28 28 28 36 Average Capacity 29 | 7 14 16 21 24 44 44 35 24 24 24 10 19 28 28 28 31 Most Carried 44 | 6 16 16 20 21 44 44 44 24 24 24 24 28 28 28 28 36 Average Carried 28 | 4 13 15 17 20 38 43 34 23 24 24 10 14 27 26 27 29 Final Capacity 44 | 8 16 16 24 24 44 44 24 24 24 24 4 28 28 28 28 20 Final Carried 44 | 6 16 16 20 21 44 44 24 24 24 24 4 28 28 28 28 16 Class Distribution -------------------- 29% | Hauler-Mutant 17% | Hauler-Skirmisher 12% | Hauler-Tank 11% | Mutant 11% | Commander-Skirmisher 8% | Commander-Mutant 3% | Tank Dominant Class ---------------- Mutant | -10/Materials Mutant | -10/Mines Hauler-Mutant | -10/Exiles Hauler-Mutant | -9/Mines Hauler-Skirmisher | -8/Materials Commander-Skirmisher | -8/Storage Commander-Mutant | -7/Factory Hauler-Tank | -7/Lower Caves Hauler-Mutant | -7/Lower Caves Hauler-Mutant | -7/Data Miner Tank | -6/Proximity Caves Hauler-Tank | -6/Factory Hauler-Mutant | -5/Factory Hauler-Mutant | -4/Factory Commander-Tank | -4/Extension Hauler-Skirmisher | -3/Research Resources | -11 -10 -10 -10 -9 -8 -8 -7 -7 -7 -7 -6 -6 -5 -4 -4 -3 ----------- Run | Scr Mat Min Exi Min Mat Sto Fac Low Low Dat Pro Fac Fac Fac Ext Res Matter Collected 10510 | 439 573 594 60 . 1071 678 746 300 238 . 425 484 1567 138 807 2390 Remotely . | . . . . . . . . . . . . . . . . . Salvage Created 13505 | 315 658 313 . . 1790 1402 1088 422 155 . 217 514 1439 120 699 4373 Parts 677 | 30 49 16 . . 84 70 54 23 4 . 16 19 71 10 26 205 Haulers Intercepted 10 | . . . . . 4 4 . . . . . 1 . . . 1 Recyclers Shooed 17 | . 2 . . . 2 2 2 . . . . . 2 . 2 5 Parts Field Recycled . | . . . . . . . . . . . . . . . . . Retrieved Matter . | . . . . . . . . . . . . . . . . . Parts Self-Destructed 26 | . . . . . . . . 13 4 . 9 . . . . . Prevented . | . . . . . . . . . . . . . . . . . Kills | -11 -10 -10 -10 -9 -8 -8 -7 -7 -7 -7 -6 -6 -5 -4 -4 -3 ------- Run | Scr Mat Min Exi Min Mat Sto Fac Low Low Dat Pro Fac Fac Fac Ext Res Combat Hostiles Destroyed 194 | . 13 10 . . 21 22 22 14 4 . 12 7 22 2 5 40 Melee 2 | . . . . . . . 1 1 . . . . . . . . Guns 72 | . 13 7 . . 18 1 1 . . . . . 1 . . 31 Cannons 79 | . . . . . 3 14 18 2 4 . 4 6 14 2 5 7 AOE 38 | . . 3 . . . 5 1 11 . . 8 1 7 . . 2 Classes Destroyed 17 | 3 3 3 . . 3 . 3 . 1 . . . . . 1 . Worker 27 | 4 . . . . 1 4 . . . . . 2 7 . . 9 Builder 10 | . . . . . 3 2 . . . . . . 3 . 1 1 Tunneler 12 | 9 . . . . 2 . . . . . . . . . . 1 Hauler 10 | . . . . . 4 4 . . . . . 1 . . . 1 Recycler 27 | 1 1 2 . . 3 2 2 . . . . 2 3 . 3 8 Operator 3 | . 1 . . . . 1 . . . . . . 1 . . . Watcher 18 | . 2 . . . 4 2 1 . . . . . 3 . . 6 Swarmer 38 | . . 5 . . . 3 . 11 . . 8 . 7 . 1 3 Grunt 76 | . 13 . . . 15 10 8 9 3 . 4 . 5 . . 9 Brawler 3 | . . . . . . . . . 1 . . 1 . . . 1 Duelist 4 | . . . . . . . 2 . . . . 1 . . . 1 Sentry 24 | . . 2 . . 4 8 2 . . . . . 2 . 3 3 Demolisher 1 | . . . . . . . 1 . . . . . . . . . Hunter 13 | . . . . . 2 1 2 . . . . 2 2 . . 4 Programmer 37 | . . . . . . . 7 . . . . 3 6 2 . 19 Behemoth 1 | . . . . . . . . . . . . . . . 1 . Assembled 3 | . . 3 . . . . . . . . . . . . . . Best Kill Streak 8 | 3 5 3 . . 4 4 4 4 2 . 4 4 6 2 2 8 Combat Bots Only 5 | . 4 3 . . 3 3 4 4 2 . 4 2 5 2 1 4 Max Kills in Single Turn 6 | 1 1 2 . . 2 3 1 6 1 . 3 3 3 1 2 2 Gunslinging 1 | . . 1 . . . . . . . . . . . . . 1 Exploded 3 | . . 1 . . . 2 1 2 . . 3 1 2 . . 1 Melee 1 | . . . . . . . 1 1 . . . . . . . . Uniques/NPCs Destroyed . | . . . . . . . . . . . . . . . . . Combat | -11 -10 -10 -10 -9 -8 -8 -7 -7 -7 -7 -6 -6 -5 -4 -4 -3 -------- Run | Scr Mat Min Exi Min Mat Sto Fac Low Low Dat Pro Fac Fac Fac Ext Res Damage Taken 21034 | . 480 402 . . 1001 1285 1455 339 278 . 588 597 4748 328 2567 6966 Core 3336 | . 80 52 . . 154 80 233 29 99 . 14 38 636 23 520 1378 Absorbed by Shields 124 | . . . . . . . . . . . . . 124 . . . Reduced by Siege Mode 477 | . . . . . . . . . . . . . . . 61 416 Core Remaining (%) 61 | 100 . . . 47 . 57 . . . . 46 95 36 . 52 . Volleys Fired 728 | 59 52 25 . . 72 53 50 18 10 . 21 23 135 13 36 161 Largest 5 | 2 2 2 . . 4 4 4 4 4 . 4 3 5 1 5 5 Hottest 387 | 40 46 46 . . 139 205 172 212 220 . 172 140 300 60 374 387 Shots Fired 1895 | 114 104 46 . . 257 139 147 33 29 . 55 69 299 13 76 514 Gun 981 | 114 104 42 . . 210 26 21 . . . . . 71 . . 393 Cannon 851 | . . . . . 47 105 122 21 29 . 41 69 211 9 76 121 Launcher 63 | . . 4 . . . 8 4 12 . . 14 . 17 4 . . Special . | . . . . . . . . . . . . . . . . . Kinetic 1233 | 114 104 42 . . 210 44 98 14 23 . 38 69 177 . 25 275 Thermal 414 | . . . . . 44 46 24 7 6 . 3 . 77 9 38 160 Explosive 43 | . . 4 . . . 8 4 12 . . 14 . 1 . . . Electromagnetic 205 | . . . . . 3 41 21 . . . . . 44 4 13 79 Robot Hit Streak 28 | 12 16 5 . . 13 23 21 8 12 . 8 6 15 4 23 28 Robot Miss Streak 7 | 5 4 2 . . 7 3 3 4 3 . 2 3 6 1 3 6 Penetration Max 1 | . . . . . . 1 1 . . . . . . . 1 1 Secondary Targets 8 | . 2 2 . . . . . . . . . . . . . 4 Max Gunslinging Chain 1 | . 1 1 . . . . . . . . . . . . . 1 Shots Hit Robots 1236 | 65 77 21 . . 164 110 92 22 16 . 20 31 180 7 60 371 Core Hits 532 | 27 27 16 . . 72 41 37 32 8 . 22 19 71 6 18 136 Critical Hits 40 | . . 1 . . . 2 . 1 . . . 1 1 . 7 27 Critical Kills 14 | . . 1 . . . . . . . . . 1 . . 1 11 Critical Parts Destroyed 19 | . . . . . . 2 . 1 . . . . . . 1 15 Melee Attacks 76 | . . . . . 9 33 20 4 . 8 . . . . . 2 Impact 74 | . . . . . 9 33 20 4 . 8 . . . . . . Slashing 2 | . . . . . . . . . . . . . . . . 2 Piercing . | . . . . . . . . . . . . . . . . . Sneak Attacks 16 | . . . . . 3 9 3 . . . . . . . . 1 Combat Hostiles 1 | . . . . . 1 . . . . . . . . . . . Follow-up Attacks . | . . . . . . . . . . . . . . . . . Damage Inflicted 36007 | 556 1120 540 . 20 2977 4006 2677 1588 420 . 1483 1708 5897 309 1988 10718 Guns 13528 | 556 1087 312 . . 1756 392 286 . . . . . 1251 . . 7888 Cannons 14277 | . . . . . 689 1754 1662 406 420 . 470 1034 3422 193 1845 2382 Explosions 5320 | . . 207 . . . 646 213 1159 . . 1013 613 1121 116 . 232 Melee 1843 | . . . . . 222 1070 422 . . . . . . . . 129 Ramming 1039 | . 33 21 . 20 310 144 94 23 . . . 61 103 . 143 87 Kinetic 16348 | 556 1087 312 . . 1756 540 1187 305 288 . 443 1034 2924 . 713 5203 Thermal 9569 | . . . . . 609 859 500 101 132 . 27 613 1675 193 943 3917 Explosive 3204 | . . 207 . . . 439 150 1159 . . 1013 . 236 . . . Electromagnetic 4004 | . . . . . 80 954 324 . . . . . 959 116 189 1382 Impact 1714 | . . . . . 222 1070 422 . . . . . . . . . Slashing 129 | . . . . . . . . . . . . . . . . 129 Piercing . | . . . . . . . . . . . . . . . . . Highest Corruption 31 | . . . . . 4 4 3 2 . . . 1 9 1 1 31 Average Corruption 5 | . . . . . 4 4 1 1 . . . 1 4 1 1 14 Corruption Purged 18 | . . . . . . . 3 2 . . . . 13 . . . Effects 497 | . . . . . 49 111 23 2 . . . 6 55 1 3 247 Message Errors 119 | . . . . . 16 31 7 . . . . 5 13 . 2 45 Matter Fused 68 | . . . . . 8 23 1 . . . . . 9 . . 27 Heat Flow Errors 40 | . . . . . 5 15 5 . . . . . 2 . . 13 Energy Discharges 47 | . . . . . 10 14 4 1 . . . . 8 . 1 9 Parts Rejected 1 | . . . . . . . . . . . . . . . . 1 Data Loss (minor) 48 | . . . . . 7 16 4 1 . . . 1 3 1 . 15 Data Loss (major) 5 | . . . . . . . . . . . . . 1 . . 4 Misfires 11 | . . . . . . . . . . . . . 4 . . 7 Alerts 1 | . . . . . . . . . . . . . . . . 1 Misdirections 25 | . . . . . . . . . . . . . . . . 25 Targeting Errors 109 | . . . . . 3 10 . . . . . . 12 . . 84 Weapon Failures 23 | . . . . . . 2 2 . . . . . 3 . . 16 Overload Shots . | . . . . . . . . . . . . . . . . . Overflow Damage 1608 | . . 21 . 5 139 583 234 29 . . 6 172 303 18 14 84 Projectiles 493 | . . . . . . 94 50 29 . . 6 7 209 . 14 84 Explosions 355 | . . 21 . . . 33 43 . . . . 161 79 18 . . Melee 760 | . . . . 5 139 456 141 . . . . 4 15 . . . Knockbacks 76 | . . . . 1 1 6 15 2 1 . . 9 28 . 3 10 Impact 16 | . . . . 1 1 6 4 . . . . 1 . . 2 1 Kinetic 58 | . . . . . . . 11 2 1 . . 8 27 . 1 8 Secondary 2 | . . . . . . . . . . . . . 1 . . 1 Self-Inflicted Damage 793 | . . 25 . . . 151 178 139 . . 79 . 76 24 . 121 Shots 27 | . . 1 . . . 5 5 5 . . 3 . 5 2 . 1 Rammed 85 | . 5 4 . 1 22 12 9 2 . . . 4 12 . 9 5 Targets Rammed 88 | . 5 4 . 1 24 12 9 2 . . . 4 12 . 10 5 Kicked . | . . . . . . . . . . . . . . . . . Crushed 3 | . . . . . 2 . . . . . . . . . 1 . Highest Temperature 1148 | . 87 49 . . 476 449 424 312 555 . 374 266 582 110 1148 914 Average Temperature 154 | . 17 13 . . 114 130 108 122 320 . 159 99 170 43 381 182 Received Heat Transfer 2744 | . 267 92 . . 360 549 213 36 108 . 108 36 387 . 309 279 Effects 140 | . . . . . 3 2 5 2 10 . . . 28 . 42 48 Shutdowns 24 | . . . . . 1 1 1 . 1 . . . 6 . 6 8 Energy Bleed 21 | . . . . . 2 1 . . 2 . . . 4 . 8 4 Interference 33 | . . . . . . . 4 2 3 . . . 6 . 8 10 Matter Decay 10 | . . . . . . . . . . . . . 2 . 3 5 Short Circuit 12 | . . . . . . . . . 2 . . . 4 . 1 5 Damage (minor) 11 | . . . . . . . . . . . . . 1 . 6 4 Damage (major) 17 | . . . . . . . . . 1 . . . 2 . 8 6 Damage (core) 12 | . . . . . . . . . 1 . . . 3 . 2 6 Siege Activations 20 | . . . . . . . . . . . . . . . 1 19 Total Turns 736 | . . . . . . . . . . . . . . . 104 632 Longest Duration 104 | . . . . . . . . . . . . . . . 104 87 Robots Corrupted 5 | . . . . . . 2 1 . . . . . . . . 2 Combat Hostiles 3 | . . . . . . 2 1 . . . . . . . . . Parts Fried 25 | . . . . . 2 5 4 . . . . . 3 . . 11 Impact Corruptions 32 | . . . . 1 4 19 6 . . . . 1 1 . . . Robots Melted . | . . . . . . . . . . . . . . . . . Combat Hostiles . | . . . . . . . . . . . . . . . . . Parts Melted 20 | . . . . . 2 . . . . . . . 1 1 . 16 Heat Transferred 12859 | . . . . . 1184 1334 785 200 250 . 50 400 2248 259 1185 4964 Parts Sabotaged . | . . . . . . . . . . . . . . . . . Parts Stolen . | . . . . . . . . . . . . . . . . . Parts Stripped . | . . . . . . . . . . . . . . . . . Power Chain Reactions 7 | . . . . . . 3 1 . . . . . 1 . . 2 Missiles Intercepted . | . . . . . . . . . . . . . . . . . Alert | -11 -10 -10 -10 -9 -8 -8 -7 -7 -7 -7 -6 -6 -5 -4 -4 -3 ------- Run | Scr Mat Min Exi Min Mat Sto Fac Low Low Dat Pro Fac Fac Fac Ext Res Peak Influence 947 | 70 253 168 . . 248 551 849 . . . . 271 638 373 274 947 Initial 293 | . . 23 . . . 102 250 . . . . . 107 293 84 16 Average 171 | 30 97 41 . . 71 147 329 . . . . 81 210 267 110 258 Maximum Alert Level 3 | . 1 . . . 1 2 3 . . . . 1 2 1 1 3 Low Security (%) 64 | 100 67 100 . 100 77 71 25 . . . . 74 72 27 87 48 Level 1 25 | . 32 . . . 22 25 48 . . . . 25 1 72 12 28 Level 2 9 | . . . . . . 3 21 . . . . . 25 . . 15 Level 3 1 | . . . . . . . 3 . . . . . . . . 7 Level 4 . | . . . . . . . . . . . . . . . . . Level 5 . | . . . . . . . . . . . . . . . . . High Security . | . . . . . . . . . . . . . . . . . Max Security . | . . . . . . . . . . . . . . . . . Squads Dispatched 57 | . 3 . . . 3 7 13 . . . . 4 8 2 . 17 Investigation 7 | . 2 . . . 2 1 2 . . . . . . . . . Extermination 26 | . . . . . . . 7 . . . . 4 5 2 . 8 Reinforcement 15 | . 1 . . . 1 3 3 . . . . . 3 . . 4 Assault 5 | . . . . . . . 1 . . . . . . . . 4 Garrison 4 | . . . . . . 3 . . . . . . . . . 1 Intercept . | . . . . . . . . . . . . . . . . . Construction Impeded 4 | . . . . . . . 1 . . . . . 1 . . 2 Haulers Reinforced 1 | . . . . . . . . . . . . . . . . 1 Stealth | -11 -10 -10 -10 -9 -8 -8 -7 -7 -7 -7 -6 -6 -5 -4 -4 -3 --------- Run | Scr Mat Min Exi Min Mat Sto Fac Low Low Dat Pro Fac Fac Fac Ext Res Distress Signals 20 | . 2 . . . 3 3 2 . . . . . 4 . 4 2 Communications Jammed 48 | . . . . . . . . . . . . . 48 . . . Distress Signals 48 | . . . . . . . . . . . . . 48 . . . Times Spotted 358 | . 25 17 . . 37 35 58 15 4 . 14 10 51 5 24 63 Peak Tracking Total 7 | . 4 5 . . 3 3 6 4 2 . 4 4 6 2 7 7 Tactical Retreats 25 | . 3 2 . . 2 2 5 3 . . 1 1 5 . 1 . Traps | -11 -10 -10 -10 -9 -8 -8 -7 -7 -7 -7 -6 -6 -5 -4 -4 -3 ------- Run | Scr Mat Min Exi Min Mat Sto Fac Low Low Dat Pro Fac Fac Fac Ext Res Traps Triggered 14 | . . . . . 2 . 1 . . . . 1 2 1 4 3 Indirectly 1 | . . . . . . . . . . . . . . 1 . . Trap Hack Attempts . | . . . . . . . . . . . . . . . . . Triggered . | . . . . . . . . . . . . . . . . . Disarmed 6 | . . . . . . 6 . . . . . . . . . . Reprogrammed . | . . . . . . . . . . . . . . . . . Reused . | . . . . . . . . . . . . . . . . . Traps Extracted . | . . . . . . . . . . . . . . . . . Installed 1 | . . . . . . . . 1 . . . . . . . . Triggered 3 | . . . . . . . . . . . 2 . 1 . . . Power Sources Rigged 36 | . . . . . . . 16 2 . . . 1 4 2 2 9 Exploded 17 | . . . . . . . 9 1 . . . 1 1 . 1 4 Machines | -11 -10 -10 -10 -9 -8 -8 -7 -7 -7 -7 -6 -6 -5 -4 -4 -3 ---------- Run | Scr Mat Min Exi Min Mat Sto Fac Low Low Dat Pro Fac Fac Fac Ext Res Machines Disabled 38 | . 1 . . . . 7 4 1 . . . 7 10 2 . 6 Max in Single Turn 6 | . 1 . . . . 2 2 1 . . . 6 3 2 . 2 Garrison Access 3 | . . . . . . 1 1 . . . . . . . . 1 Machines Sabotaged . | . . . . . . . . . . . . . . . . . Garrisons Compromised . | . . . . . . . . . . . . . . . . . Overloaded Fab Kills . | . . . . . . . . . . . . . . . . . Fab Network Shutdowns . | . . . . . . . . . . . . . . . . . Hacking | -11 -10 -10 -10 -9 -8 -8 -7 -7 -7 -7 -6 -6 -5 -4 -4 -3 --------- Run | Scr Mat Min Exi Min Mat Sto Fac Low Low Dat Pro Fac Fac Fac Ext Res Machines Accessed 79 | . 9 . 4 . 10 7 8 4 2 4 1 8 11 1 2 8 Terminals 39 | . 7 . . . 7 5 5 . 1 . 1 4 4 . 2 3 Fabricators 7 | . . . . . . . 2 . . . . 3 1 1 . . Repair Stations 2 | . . . . . . 1 . . . . . . 1 . . . Recycling Units 7 | . 2 . . . 1 . . . . . . . 3 . . 1 Scanalyzers 5 | . . . . . 2 . . . . . . . 1 . . 2 Garrison Access 6 | . . . . . . 1 1 . . . . 1 1 . . 2 Total Hacks 272 | . 41 . 27 . 50 31 20 10 2 31 1 17 24 2 3 13 Successful 182 | . 23 . 27 . 33 21 7 10 2 31 1 7 13 . 2 5 Failed 90 | . 18 . . . 17 10 13 . . . . 10 11 2 1 8 Catastrophic 17 | . . . . . 2 2 2 . . . . 3 4 . . 4 Database Lockouts . | . . . . . . . . . . . . . . . . . Manual 128 | . 39 . 1 . 26 27 15 . . . . 11 6 . . 3 Terminals 120 | . 34 . . . 23 24 14 . 1 . 1 9 7 . 3 4 Fabricators 13 | . . . . . . . 3 . . . . 6 2 2 . . Repair Stations 7 | . . . . . . 4 . . . . . . 3 . . . Recycling Units 17 | . 7 . . . 3 . . . . . . . 5 . . 2 Scanalyzers 33 | . . . . . 24 . . . . . . . 4 . . 5 Garrison Access 13 | . . . . . . 3 3 . . . . 2 3 . . 2 Terminal Hacks 87 | . 3 . 27 . 1 6 1 10 2 31 1 2 1 . 2 . Record 47 | . . . 26 . . . . 8 1 11 1 . . . . . Part Schematic 12 | . . . . . 1 . . . . 11 . . . . . . Robot Schematic 6 | . . . . . . . . . . 6 . . . . . . Robot Analysis 1 | . . . . . . . . . . . . . . . 1 . Prototype ID Bank 3 | . . . . . . . . . . 3 . . . . . . Open Door 4 | . . . . . . . . 2 1 . . . . . 1 . Level Access Points 1 | . . . . . . . . . . . . . 1 . . . Terminal Index 3 | . 1 . . . . 1 . . . . . 1 . . . . Fabricator Index 1 | . . . . . . . . . . . . 1 . . . . Unreport Threat 4 | . 1 . . . . 2 1 . . . . . . . . . Locate Traps 2 | . 1 . . . . 1 . . . . . . . . . . Disarm Traps 1 | . . . . . . 1 . . . . . . . . . . Zone Layout 1 | . . . . . . 1 . . . . . . . . . . EX-Prototype ID Bank 1 | . . . 1 . . . . . . . . . . . . . Fabricator Hacks 5 | . . . . . . . 1 . . . . 3 1 . . . Load Schematic 4 | . . . . . . . 1 . . . . 2 1 . . . Build 1 | . . . . . . . . . . . . 1 . . . . Repair Station Hacks 6 | . . . . . . 4 . . . . . . 2 . . . Scan Component 3 | . . . . . . 2 . . . . . . 1 . . . Repair 3 | . . . . . . 2 . . . . . . 1 . . . Recycling Unit Hacks 9 | . 2 . . . 1 . . . . . . . 5 . . 1 Process 1 | . . . . . . . . . . . . . 1 . . . Report Inventory 1 | . 1 . . . . . . . . . . . . . . . Retrieve Matter 5 | . 1 . . . . . . . . . . . 3 . . 1 Retrieve Components 2 | . . . . . 1 . . . . . . . 1 . . . Scanalyzer 29 | . . . . . 24 . . . . . . . 3 . . 2 Insert Component 17 | . . . . . 13 . . . . . . . 2 . . 2 Analyze 12 | . . . . . 11 . . . . . . . 1 . . . Garrison Access Hacks . | . . . . . . . . . . . . . . . . . Unauthorized Hacks 46 | . 18 . . . 7 11 5 . . . . 2 1 . . 2 Terminals 34 | . 13 . . . 7 8 4 . . . . 2 . . . . Track 2 | . 1 . . . . . 1 . . . . . . . . . Assimilate 12 | . 4 . . . 3 4 1 . . . . . . . . . Botnet 18 | . 7 . . . 4 4 2 . . . . 1 . . . . Detonate 2 | . 1 . . . . . . . . . . 1 . . . . Fabricators . | . . . . . . . . . . . . . . . . . Repair Stations . | . . . . . . . . . . . . . . . . . Recycling Units 5 | . 5 . . . . . . . . . . . . . . . Monitor 1 | . 1 . . . . . . . . . . . . . . . Mask 2 | . 2 . . . . . . . . . . . . . . . Tunnel 2 | . 2 . . . . . . . . . . . . . . . Scanalyzers . | . . . . . . . . . . . . . . . . . Garrison Access 7 | . . . . . . 3 1 . . . . . 1 . . 2 Reprogram 5 | . . . . . . 2 . . . . . . 1 . . 2 Jam 2 | . . . . . . 1 1 . . . . . . . . . Data Cores Recovered 1 | . . . . . . . . . . . . . 1 . . . Used . | . . . . . . . . . . . . . . . . . Hacking Detections 57 | . 7 . . . 10 7 8 . . . . 8 9 1 1 6 Full Trace Events 1 | . . . . . . . 1 . . . . . . . . . Feedback Events . | . . . . . . . . . . . . . . . . . Feedback Blocked . | . . . . . . . . . . . . . . . . . Robot Schematics Acquired 6 | . . . . . . . . . . 6 . . . . . . Robots Built . | . . . . . . . . . . . . . . . . . Matter . | . . . . . . . . . . . . . . . . . Time . | . . . . . . . . . . . . . . . . . Total Robot Build Rating . | . . . . . . . . . . . . . . . . . Part Schematics Acquired 23 | . . . . . 11 . . . . 11 . . 1 . . . Parts Built 1 | . . . . . . . . . . . . 1 . . . . Matter 102 | . . . . . . . . . . . . 102 . . . . Time 25 | . . . . . . . . . . . . 25 . . . . Total Part Build Rating 1 | . . . . . . . . . . . . 1 . . . . Parts Repaired 3 | . . . . . . 2 . . . . . . 1 . . . Time 95 | . . . . . . 76 . . . . . . 19 . . . Parts Recycled . | . . . . . . . . . . . . . . . . . Recycled Matter . | . . . . . . . . . . . . . . . . . Retrieved Matter 102 | . . . . . . . . . . . . . 102 . . . Retrieved Components 19 | . . . . . 9 . . . . . . . 10 . . . Parts Scanalyzed 13 | . . . . . 10 . . . . . . . 2 . . 1 Part Schematics Acquired 11 | . . . . . 10 . . . . . . . 1 . . . Parts Damaged 1 | . . . . . 1 . . . . . . . . . . . Bothacking | -11 -10 -10 -10 -9 -8 -8 -7 -7 -7 -7 -6 -6 -5 -4 -4 -3 ------------ Run | Scr Mat Min Exi Min Mat Sto Fac Low Low Dat Pro Fac Fac Fac Ext Res Used RIF Installer . | . . . . . . . . . . . . . . . . . Robots Hacked . | . . . . . . . . . . . . . . . . . Non-combat . | . . . . . . . . . . . . . . . . . Combat . | . . . . . . . . . . . . . . . . . Robot Hacks Applied . | . . . . . . . . . . . . . . . . . Relay Couplers Released 3 | . . . . . . . . . . . . . . . . 3 Machine Destruction 3 | . . . . . . . . . . . . . . . . 3 Robots Rewired 11 | . . . . . . . . . . . . . . . 11 . Allies Hacked . | . . . . . . . . . . . . . . . . . Hacks Repelled . | . . . . . . . . . . . . . . . . . Allies | -11 -10 -10 -10 -9 -8 -8 -7 -7 -7 -7 -6 -6 -5 -4 -4 -3 -------- Run | Scr Mat Min Exi Min Mat Sto Fac Low Low Dat Pro Fac Fac Fac Ext Res Total Allies 34 | . 1 1 . . 1 11 . . . . 1 . . . 14 5 Largest Group 12 | . 1 1 . . 1 12 10 6 . . 1 . . . 11 4 Highest-Rated Group 437 | . 10 31 . . 10 198 173 96 . . 94 . . . 437 188 Highest-Rated Ally 94 | . 10 31 . . 10 29 29 16 . . 94 . . . 49 64 Total Orders 41 | . 1 . . . 9 5 4 . . . . 1 7 3 4 7 STAY 11 | . 1 . . . 3 3 2 . . . . . 1 . 1 . FOLLOW 11 | . . . . . 6 2 2 . . . . . . . 1 . EXPLORE 11 | . . . . . . . . . . . . . 5 1 2 3 RETURN 8 | . . . . . . . . . . . . 1 1 2 . 4 Ally Attacks 254 | . . . . . . 25 98 11 . . 15 . . . 82 23 Total Damage 4940 | . . . . . . 411 1290 75 . . 421 . . . 2131 612 Kills 27 | . . . . . . 4 12 . . . 1 . . . 9 1 Allies Corrupted . | . . . . . . . . . . . . . . . . . Allies Melted . | . . . . . . . . . . . . . . . . . Intel | -11 -10 -10 -10 -9 -8 -8 -7 -7 -7 -7 -6 -6 -5 -4 -4 -3 ------- Run | Scr Mat Min Exi Min Mat Sto Fac Low Low Dat Pro Fac Fac Fac Ext Res Robot Analysis Total 1 | . . . . . . . . . . . . . . . 1 . Derelict Logs Recovered 6 | . . 2 . . . . . 2 1 . 1 . . . . . Drone Launches 18 | . . . . . . . . . . . . 2 5 2 3 6 Drone Recoveries 12 | . . . . . . . . . . . . 2 2 2 2 4 Exploration | -11 -10 -10 -10 -9 -8 -8 -7 -7 -7 -7 -6 -6 -5 -4 -4 -3 ------------- Run | Scr Mat Min Exi Min Mat Sto Fac Low Low Dat Pro Fac Fac Fac Ext Res Turns Passed 38550 | 431 1592 1151 1098 33 5315 5164 4269 3171 1763 349 3377 1787 3617 549 1011 3873 Spaces Moved 14877 | 159 846 595 575 16 1534 1574 1585 1337 740 142 1602 854 1355 254 316 1393 Core 10 | 10 . . . . . . . . . . . . . . . . Treads 14867 | 149 846 595 575 16 1534 1574 1585 1337 740 142 1602 854 1355 254 316 1393 Legs . | . . . . . . . . . . . . . . . . . Wheels . | . . . . . . . . . . . . . . . . . Hover . | . . . . . . . . . . . . . . . . . Flight . | . . . . . . . . . . . . . . . . . Fastest Speed 50 | 50 160 160 160 200 240 250 210 230 230 230 190 166 180 183 183 152 Average Speed 210 | 154 161 160 188 200 243 250 240 230 230 230 202 189 198 183 183 174 Slowest Speed 250 | 160 180 160 200 200 250 250 250 230 230 230 230 206 225 183 183 200 Overloaded Moves . | . . . . . . . . . . . . . . . . . Propulsion Burnouts . | . . . . . . . . . . . . . . . . . Robots Hopped . | . . . . . . . . . . . . . . . . . Cave-ins Triggered . | . . . . . . . . . . . . . . . . . Exploration Rate (%) 56 | 8 98 92 91 7 63 90 26 98 77 71 95 20 43 6 47 23 Regions Visited 16 Branch Regions 9 Pre-discovered Areas 7 | . 2 . . . . . . 3 1 1 . . . . . . Known Exits Taken 2 | . . . . . 1 . . . . . . . 1 . . . Unknown Exits Taken 14 | 1 1 1 1 1 . 1 1 1 1 1 1 1 . 1 1 . Scrap Searched 11 | . . 1 . . . . . 2 3 . 5 . . . . . Spaces Dug 139 | . . 9 . . 5 65 6 11 . 8 32 2 1 . . . Terrain Destroyed 689 | . . 42 . . 5 114 65 96 1 8 118 75 100 . 5 60 Melee 26 | . . . . . 5 7 6 . . 8 . . . . . . Projectile 94 | . . . . . . 8 10 . 1 . 11 11 36 . 5 12 AOE 569 | . . 42 . . . 99 49 96 . . 107 64 64 . . 48 Terrain Rammed . | . . . . . . . . . . . . . . . . . Walls Destroyed . | . . . . . . . . . . . . . . . . . Machines Disabled . | . . . . . . . . . . . . . . . . . Actions | -11 -10 -10 -10 -9 -8 -8 -7 -7 -7 -7 -6 -6 -5 -4 -4 -3 --------- Run | Scr Mat Min Exi Min Mat Sto Fac Low Low Dat Pro Fac Fac Fac Ext Res Total 20686 | 250 993 755 592 17 2952 2630 1904 1401 784 152 1704 969 2058 330 691 2504 Wait 3885 | 20 45 110 . . 1211 882 136 1 28 1 52 45 404 43 176 731 Move 14862 | 158 845 594 574 16 1533 1573 1584 1336 739 141 1601 853 1354 253 315 1393 Hop . | . . . . . . . . . . . . . . . . . Pick Up 326 | 6 20 4 15 1 55 23 35 6 3 . 3 29 44 8 16 58 Fast Attach 76 | 7 . . 1 . . 8 1 4 . . 7 2 12 1 4 29 Attach 84 | . 1 2 . . 8 2 4 4 . . 3 3 18 4 7 28 Detach 10 | . . . . . 1 1 . 1 . . . 1 2 1 . 3 Swap 113 | . 8 9 . . 10 14 9 8 1 2 6 2 20 . 5 19 Drop 292 | . 17 7 2 . 29 29 40 14 3 . 11 5 53 5 13 64 Fire 728 | 59 52 25 . . 72 53 50 18 10 . 21 23 135 13 36 161 Melee 76 | . . . . . 9 33 20 4 . 8 . . . . . 2 Ram . | . . . . . . . . . . . . . . . . . Kick . | . . . . . . . . . . . . . . . . . Crush 87 | . 5 4 . . 24 12 9 2 . . . 4 12 . 10 5 Escape Stasis 10 | . . . . . . . . . . . . . . . 8 2 Rewire 99 | . . . . . . . . . . . . . . . 99 . Trap 37 | . . . . . . . 16 3 . . . 1 4 2 2 9 Miscellaneous 1 | . . . . . . . . . . . . 1 . . . . Route ------- -11/Scrapyard -10/Materials (discovered 4 exits: *Mat x3 / [*Min]) -10/Mines (discovered 3 exits: *Mat x2 / *Exi) -10/Exiles (discovered 2 exits: [*Min x2]) -9/Mines -8/Materials -8/Storage -7/Factory (discovered 2 exits: *Fac / *Low) -7/Lower Caves -7/Lower Caves (discovered 2 exits: *Fac / *Dat) -7/Data Miner -6/Proximity Caves -6/Factory -5/Factory (discovered 4 exits: *Fac x4) -4/Factory -4/Extension -3/Research (discovered 1 exit: [*Res]) History --------- Turn | Location | Event 8 | -11/Scrapyard | Discovered new exit (range 15) 432 | -11/Scrapyard | Entered Materials 433 | -10/Materials | Build established: Mutant 576 | -10/Materials | Discovered new exit (range 14) 883 | -10/Materials | Discovered new exit (range 16) 1285 | -10/Materials | Discovered new exit (range 15) 1473 | -10/Materials | Discovered new exit (range 16) 2024 | -10/Materials | Entered Mines 2024 | -10/Mines | Accompanied by 1 ally 2098 | -10/Mines | Discovered new exit (range 15) 2103 | -10/Mines | Identified exit to Materials 2109 | -10/Mines | Assembled infested the area 2114 | -10/Mines | Assisted by a Guerilla fighting off Assembled 2414 | -10/Mines | Core integrity fell below 50% 2531 | -10/Mines | Received a Mining Laser from a helpful Derelict 3100 | -10/Mines | Deemed a non-threat by the Exiles lab entrance 3100 | -10/Mines | Discovered new exit (range 5) 3175 | -10/Mines | Entered Exiles 3203 | -10/Exiles | Discovered new exit (range 15) 3260 | -10/Exiles | Met 8R-AWN 3283 | -10/Exiles | Met EX-HEX 3345 | -10/Exiles | Met EX-DEC 3573 | -10/Exiles | Visited The Gauntlet 3753 | -10/Exiles | Build established: Hauler-Mutant 3906 | -10/Exiles | Met EX-BIN 3934 | -10/Exiles | Aligned with FarCom system 3936 | -10/Exiles | Given EX-Vault access code 4040 | -10/Exiles | Opened EX-Vault 4058 | -10/Exiles | Found PSU Rigger 4109 | -10/Exiles | Warned to stay clear of 0b10 Research branches 4249 | -10/Exiles | Discovered new exit (range 14) 4273 | -10/Exiles | Left Exiles lab with PSU Rigger 4273 | -10/Exiles | Entered Mines 4287 | -9/Mines | Discovered new exit (range 5) 4306 | -9/Mines | Entered Materials 4306 | -8/Materials | Evolved 4 slots: Utility x2, Weapon x2 4307 | -8/Materials | Identified exit to Storage 4615 | -8/Materials | Build established: Hauler-Skirmisher 7759 | -8/Materials | Build established: Hauler-Mutant 9621 | -8/Materials | Entered Storage 9621 | -8/Storage | Accompanied by 1 ally 10926 | -8/Storage | Build established: Hauler-Skirmisher 11375 | -8/Storage | Assisted by bots powering up and referring to "LRC-V3" 11907 | -8/Storage | Build established: Commander-Skirmisher 13868 | -8/Storage | Discovered new exit (range 9) 13949 | -8/Storage | Repaired Arm. Treads 13988 | -8/Storage | Repaired EM Pulse Cannon 14376 | -8/Storage | Build established: Commander-Mutant 14785 | -8/Storage | Entered Factory 14785 | -7/Factory | Accompanied by 10 allies 14785 | -7/Factory | Evolved 2 slots: Utility x2 15510 | -7/Factory | Discovered new exit (range 15) 15808 | -7/Factory | Build established: Commander-Skirmisher 16612 | -7/Factory | Build established: Commander-Mutant 17021 | -7/Factory | Build established: Commander-Skirmisher 17437 | -7/Factory | Build established: Commander-Mutant 18050 | -7/Factory | Build established: Commander-Skirmisher 18163 | -7/Factory | Discovered new exit (range 8) 18785 | -7/Factory | First assault squad dispatched 19054 | -7/Factory | Entered Lower Caves 19054 | -7/Lower Caves | Accompanied by 6 allies 19341 | -7/Lower Caves | Found Alien Artifact 19436 | -7/Lower Caves | Build established: Hauler-Mutant 19648 | -7/Lower Caves | Discovered new exit (range 12) 19924 | -7/Lower Caves | Build established: Hauler-Tank 21007 | -7/Lower Caves | Build established: Hauler-Mutant 21394 | -7/Lower Caves | Build established: Hauler-Tank 21529 | -7/Lower Caves | Learned location of Extension (-4) 21529 | -7/Lower Caves | Learned Research terminal intel 21529 | -7/Lower Caves | Learned Research garrison access intel 21993 | -7/Lower Caves | Found Prototype Device 22172 | -7/Lower Caves | Build established: Hauler-Mutant 22225 | -7/Lower Caves | Entered another Lower Caves area 22393 | -7/Lower Caves | Discovered new exit (range 5) 23349 | -7/Lower Caves | Core integrity fell below 50% 23796 | -7/Lower Caves | Discovered new exit (range 9) 23988 | -7/Lower Caves | Entered Data Miner 23988 | -7/Data Miner | Discovered new exit (range 6) 24032 | -7/Data Miner | Met Data Miner 24083 | -7/Data Miner | Learned location of Section 7 (-3) 24083 | -7/Data Miner | Acquired the access code to Warlord's prototype stash 24171 | -7/Data Miner | Received God Mode back door access code from Data Miner 24337 | -7/Data Miner | Entered Proximity Caves 24360 | -6/Proximity Caves | Escorted by Enhanced Grunt 24703 | -6/Proximity Caves | Attracted the attention of an 0b10 checkpoint 24996 | -6/Proximity Caves | Build established: Hauler-Tank 25179 | -6/Proximity Caves | Spotted B-75 Beast 25518 | -6/Proximity Caves | Identified Dimensional Node Initializer 25518 | -6/Proximity Caves | Initialized slip node 25805 | -6/Proximity Caves | Build established: Tank 25814 | -6/Proximity Caves | Discovered new exit (range 12) 25881 | -6/Proximity Caves | Learned Factory emergency access door positions 27252 | -6/Proximity Caves | Build established: Mutant 27714 | -6/Proximity Caves | Entered Factory 27714 | -6/Factory | Evolved 2 slots: Propulsion x1, Utility x1 27863 | -6/Factory | Fabricated Hcp. Storage Unit (x1) 28645 | -6/Factory | Build established: Hauler-Tank 29249 | -6/Factory | Discovered new exit (range 5) 29399 | -6/Factory | Build established: Hauler-Skirmisher 29501 | -6/Factory | Entered another Factory area 29501 | -5/Factory | Evolved 2 slots: Utility x1, Weapon x1 29892 | -5/Factory | Build established: Hauler-Tank 31159 | -5/Factory | Build established: Hauler-Mutant 31852 | -5/Factory | Core integrity fell below 50% 31985 | -5/Factory | Repaired Hvy. Armor Plating 32746 | -5/Factory | Lost 3 parts (2u1w) 32957 | -5/Factory | Identified exit to Factory 33118 | -5/Factory | Entered another Factory area 33118 | -4/Factory | Evolved 2 slots: Power x1, Propulsion x1 33383 | -4/Factory | Discovered new exit (range 43) 33667 | -4/Factory | Entered Extension 33747 | -4/Extension | Rescued a captive Derelict 33747 | -4/Extension | Rescued a captive Derelict 34301 | -4/Extension | Rescued a captive Derelict 34318 | -4/Extension | Build established: Commander-Tank 34440 | -4/Extension | Spotted B-86 Titan 34484 | -4/Extension | Spotted B-86 Titan 34539 | -4/Extension | Destroyed B-86 Titan 34568 | -4/Extension | Lost 7 parts (1n3u3w) 34592 | -4/Extension | Disrupted transfer network 34674 | -4/Extension | Discovered new exit (range 3) 34678 | -4/Extension | Entered Research 34678 | -3/Research | Evolved 2 slots: Utility x2 34679 | -3/Research | Loaded intel: 20 terminal locations 34680 | -3/Research | Loaded intel: 3 garrison access locations 34682 | -3/Research | Identified Heart of Steel 36021 | -3/Research | Garrison activated, responded to threat 36300 | -3/Research | System corruption reached 10% 36561 | -3/Research | Build established: Hauler-Skirmisher 36905 | -3/Research | Build established: Scavenger-Skirmisher 37014 | -3/Research | Discovered new exit (range 3) 37818 | -3/Research | Lost 3 parts (1p2w) 38053 | -3/Research | Build established: Hauler-Skirmisher 38203 | -3/Research | First assault squad dispatched 38229 | -3/Research | Incoming assault squad redirected 38267 | -3/Research | Spotted B-86 Titan 38294 | -3/Research | Allies destroyed B-86 Titan 38403 | -3/Research | Core integrity fell below 50% 38529 | -3/Research | Incoming assault squad redirected 38538 | -3/Research | System corruption reached 30% 38548 | -3/Research | Core integrity fell below 20% 38552 | -3/Research | Core destroyed Last Messages --------------- 38541_ Hvy. Phase Cannon crushed and broken. 38541_ Slug penetrates L-61 Swordsman. 38542_ Power failure, Lgt. Particle Reactor shutdown. 38543_ Power failure, Mic. Fission Core shutdown. 38543_ Overheating: System interference. 38543_ Railgun temporarily disabled. 38543_ Quantum Rifle temporarily disabled. 38544_ Overheating: Core damaged (-208). 38544_ Quantum Rifle destroyed. 38544_ System corrupted by crushing effect (+1). 38545_ Railgun severed. 38545_ Railgun crushed and broken. 38545_ Gui. EMP Blaster destroyed. 38547_ Slug penetrates L-61 Swordsman. 38547_ L-61 Swordsman knocked back. 38548_ Overheating: Core damaged (-130). 38549_ Overheating: System interference. 38549_ Imp. KE Penetrator temporarily disabled. 38550_ Overheating: Energy bleed (-11). 38552_ Overheating: Core damaged (-247). Map ----- +----------------------------------------------------+ | ????# ! #????????????????????????????????????? | | ????# #????????????????????????????????????? | | ????# #????????????????????????????????????? | | ????# #????????????????????????????????????? | | ????# #????????????????????????????????????? | | ????# #????????????????????????????????????? | | ????# #????????????????????????????????????? | | ????# + ???????????????????????????????????? | | ????# | # ???????????????????????????????? | | ##### # ???????????????????????????????? | | # # ??????????????????????????????? | | == # # ?????????????????????????????? | | ! *#/#+#### ^ ???????????????????????????? | | ![ |# ???????????????????????????? | | *!%!+ ???????????????????????????? | | "! !# ???????????????????????????? | | "% # ???????????????????????????? | | ######## ####+######+########????????????? | | #??????# # "% #????????????? | | #/########## # % * #????????????? | | # [| * #????????????? | | # **=% #????????????? | | = + """""mg""""" #????????????? | | ! """ # """""l%""""" #????????????? | | ! ""T"" # """""gb""""" #????????????? | | "" "" # """""@/""""" #????????????? | | = i####################????????????? | | ?????????????????????? | | ????????????????????? | | % ????????????????????? | | % % ^ ????????????????????? | | #+###[ """ ?????????????????????? | | % # """ """ ?????????????????????? | | ?# """ """ ? ?????????????????????? | | ?# """ ""?????????????????????????? | | ? ?# """ ! ?????????????????????????? | | ? ?# ! ????????????????????????? | | ? ?# ????????????????????????? | | ????# ^ ######+?????????????????????????? | | ????# #???????????????????????????????? | | ????# #???????????????????????????????? | | ???? ????????????????????????????????? | | ????? ?? ??????????????????????????????????? | | ????? ???????????????????????????????????????? | | ????????????????????????????????????????????????? | | ????????????????????????????????????????????????? | | ????????????????????????????????????????????????? | | ????????????????????????????????????????????????? | | ????????????????????????????????????????????????? | | ????????????????????????????????????????????????? | +----------------------------------------------------+ Best States ------------- Heat Dissipation 77 Energy Generation 41 Energy Capacity 495 Matter Stores 300 Matter Capacity 300 Sight Range 16 Robot Scan Range 16 Terrain Scan Density 10 Jamming Range 14 EM Shielding 3 Heat Shielding 100 Armor Coverage 1650 Utility Shielding 66 Weapon Cycling 20 Evasion (%) 40 Recoil Reduction 10 Overload Amplification 75 Item Schematics ----------------- Lgt. Armor Plating | -8/Materials | Scanalyzed Beam Cannon | -8/Materials | Scanalyzed Assault Cannon | -8/Materials | Scanalyzed Datajack | -8/Materials | Scanalyzed Gauss Rifle | -8/Materials | Scanalyzed Mni. Grenade Launcher | -8/Materials | Scanalyzed Grenade Launcher | -8/Materials | Scanalyzed Imp. Heat Sink | -8/Materials | Scanalyzed Lgt. Treads | -8/Materials | Scanalyzed Ion Cannon | -8/Materials | Scanalyzed Hcp. Storage Unit | -8/Materials | Hacked Combat Drone Bay | -7/Data Miner | Free Lgt. Regenerative Plating | -7/Data Miner | Free Exp. Flexi-carbon Leg | -7/Data Miner | Free Exp. Cesium-ion Thruster | -7/Data Miner | Free Exp. Terrain Scanner | -7/Data Miner | Free Exp. Terrain Scan Processor | -7/Data Miner | Free Exp. Targeting Computer | -7/Data Miner | Free Tactical Coordination Suite | -7/Data Miner | Free Cloaking Device | -7/Data Miner | Free Exp. ECM Suite | -7/Data Miner | Free Plasma Sword | -7/Data Miner | Free Hpw. Shock Rifle | -5/Factory | Scanalyzed Robot Schematics ------------------ S-27 Virus | -7/Data Miner | Free G-50 Soldier | -7/Data Miner | Free X-72 Disruptor | -7/Data Miner | Free P-70 Sage | -7/Data Miner | Free I-36 Angel | -7/Data Miner | Free I-47 Archangel | -7/Data Miner | Free Fabricated ------------ Hcp. Storage Unit | x1 | -6/Factory Alien Tech Used ----------------- Dimensional Node Initializer Achievements -------------- Dangerous Findings Challenges ------------ None Game ------ Seed PhaseHardenedExpander Manual? 0 Play Time 04:44:12 Cumulative 154.0 hours Start 2022.02.27 @ 23:12:28 End 2022.02.28 @ 04:37:19 Sessions 1 Manual Loads 0 Difficulty Rogue Special Mode None Game No. 110 Rogue 110 Adventurer 0 Explorer 0 Win Type - Total 0 Types 0/0/0/0/0/0/0/0/0 Lore% 47 Gallery% 58 Achievement% 37 Wizard Run 0 Options --------- ASCII 0 Keyboard 0 Movement Numpad Keybinds 0 Fullscreen 1 Font 18/SmallcapsGlow Map View 76x50 Tactical HUD 1 Map Filters NONE Filters NONE Steam 1 RUN: 04e2dea7-3cd2-4fb2-8c28-74c3742db6ce